Cogmind - Beta 9.2 @@@ ROGUE MODE // 2019.12.15 @ 19:50:51 Player: Fleshy Vegetable Bird Result: Destroyed by as-90495 with Assembled Focal Cannon Performance ------------- Evolutions (3) 1500 Regions Visited (10) 2000 Robots Destroyed (104) 520 Value Destroyed (2220) 2220 Prototype IDs (31) 620 Alien Tech Used (0) 0 Bonus (7361) 7361 TOTAL SCORE: 14221 Bonus ------- Follower Combat Kills 529 Aligned with FarCom 300 Met Imprinter 300 Triggered Deep Caves Wall 1000 Exposed GOLEM Chamber 6500 Friendly Fire -1268 Cogmind --------- Core Integrity 0/700 Matter 16/300 Energy 98/100 System Corruption 10% Temperature Cool (85) Movement Treading (250) Ox4 Location -7/Deep Caves Parts ------- > --- POWER (1) -------- Zionite Light DM Reactor > --- PROPULSION (4) --- Armored Treads > --- UTILITY (5) ------ Large Storage Unit High-capacity Storage Unit High-capacity Storage Unit > --- WEAPON (3) ------- Phasing Sabre > --- INVENTORY (26) --- Reinforced Deuterium Engine Reinforced Deuterium Engine Zionite Light DM Reactor Zionite Biocell (1000) Compact Matter Pod (150) Advanced Signal Interpreter Surveybot 24 Scanner Surveybot 24 Chip Salvage Targeting Computer Armor Integrity Analyzer Makeshift Hacking Suite Makeshift System Shield GOLEM Unit Lightning Gun Advanced Beam Rifle Zionite Phaser-S Advanced Assault Cannon Peak State ------------ > --- POWER ------------ Improved Deuterium Engine > --- PROPULSION ------- Light Treads Improved Treads Armored Treads Armored Treads > --- UTILITY ---------- Large Storage Unit High-capacity Storage Unit High-capacity Storage Unit Zionite Heavy Carapace > --- WEAPON ----------- Zionite Laser-S Zionite Phaser-S Rocket Launcher > --- INVENTORY -------- Reinforced Deuterium Engine Reinforced Deuterium Engine Zionite Light DM Reactor Zionite Light DM Reactor Armored Treads Armored Treads Zionite Biocell Compact Matter Pod Advanced Signal Interpreter Salvage Targeting Computer Armor Integrity Analyzer Zionite Light Carapace Makeshift Hacking Suite Makeshift System Shield Lightning Gun Advanced Beam Rifle Zionite Phaser-S Advanced Assault Cannon Bore Cannon Proton Missile Launcher Phasing Sabre Fire Trap Fire Trap Deploy-a-Sentry Deploy-a-Sentry Deploy-a-Sentry [Rating: 55] Favorites ----------- Power Light Nuclear Core Engine Ion Engine Power Core Light Nuclear Core Reactor Zionite Light DM Reactor Propulsion Light Treads Treads Light Treads Wheel Wheel Utility High-capacity Storage Unit Device Improved Heat Sink Storage High-capacity Storage Unit Protection Improved Medium Armor Plating Weapon Heavy Assault Rifle Energy Gun Advanced Beam Rifle Energy Cannon Heavy Ion Cannon Ballistic Gun Heavy Assault Rifle Ballistic Cannon Bore Cannon Launcher Rocket Launcher Slashing Weapon Phasing Sabre Piercing Weapon Spear Build | -11 -10 -10 -10 -9 -8 -7 -7 -7 -7 -7 ------- Run | Scr Mat Min Exi Min Mat Fac Low Low Zio Dee Slots Evolved 6 | . . . . . 4 2 . . . . Power . | . . . . . . . . . . . Propulsion 2 | . . . . . 1 1 . . . . Utility 3 | . . . . . 2 1 . . . . Weapon 1 | . . . . . 1 . . . . . Parts Attached 92 | 9 3 2 3 . 10 13 16 6 6 24 Power 9 | 1 . . 1 . . 3 . 1 1 2 Engine 6 | 1 . . 1 . . 2 . . 1 1 Core 2 | . . . . . . 1 . 1 . . Reactor 1 | . . . . . . . . . . 1 Propulsion 33 | 4 1 1 . . 2 4 6 3 3 9 Treads 21 | . . . . . . . 6 3 3 9 Leg . | . . . . . . . . . . . Wheel 12 | 4 1 1 . . 2 4 . . . . Hover . | . . . . . . . . . . . Flight . | . . . . . . . . . . . Utility 16 | 2 . 1 2 . 2 1 3 . . 5 Device 1 | . . . . . 1 . . . . . Storage 7 | 2 . 1 2 . 1 . . . . 1 Processor . | . . . . . . . . . . . Hackware . | . . . . . . . . . . . Protection 8 | . . . . . . 1 3 . . 4 Artifact . | . . . . . . . . . . . Weapon 34 | 2 2 . . . 6 5 7 2 2 8 Energy Gun 14 | . . . . . 2 1 5 2 . 4 Energy Cannon 1 | . . . . . . . . . 1 . Ballistic Gun 11 | 2 2 . . . 3 3 1 . . . Ballistic Cannon 1 | . . . . . . . . . . 1 Launcher 3 | . . . . . 1 . . . . 2 Special Weapon . | . . . . . . . . . . . Impact Weapon . | . . . . . . . . . . . Slashing Weapon 2 | . . . . . . . . . 1 1 Piercing Weapon 2 | . . . . . . 1 1 . . . Special Melee Weapon . | . . . . . . . . . . . Unidentified Prototypes 9 | . . . . . 1 2 . . . 6 Parts Lost 36 | . 1 . . . 1 2 10 1 . 21 Power 2 | . . . . . . 1 . . . 1 Propulsion 15 | . 1 . . . . 1 3 . . 10 Utility 6 | . . . . . . . 2 . . 4 Weapon 13 | . . . . . 1 . 5 1 . 6 Highest Loss Streak 7 | . 1 . . . 1 1 5 1 . 7 Average Slot Usage (%) 95 | . 93 100 100 100 79 94 91 99 100 86 Engine 4 | . 14 14 14 14 9 5 . . . 5 Core 3 | . . . . . . 1 7 7 6 . Treads 17 | . . . . . . . 14 30 30 27 Wheel 10 | . 22 28 28 28 21 26 12 . . . Device 1 | . . . . . 1 7 3 . . . Storage 23 | . 28 28 28 28 19 23 23 23 23 23 Protection 8 | . . . . . . 6 6 15 15 7 Energy Gun 8 | . . . . . 6 7 12 14 9 10 Energy Cannon 1 | . . . . . . . . . 5 1 Ballistic Gun 9 | . 28 28 28 28 20 13 8 7 1 . Slashing Weapon 1 | . . . . . . . . . 5 2 Naked Turns . | . . . . . . . . . . . Heaviest Build 112 | 14 17 45 75 75 94 97 103 104 112 112 Greatest Support 88 | 32 20 20 20 20 30 46 80 80 88 88 Greatest Overweight (x) 4 | 2 1 4 4 3 3 3 3 1 1 4 Average Overweight (x) 1 | . . 2 2 3 2 2 2 1 1 1 Largest Inventory Capacity 26 | 8 8 14 20 20 26 26 26 26 26 26 Average Capacity 23 | 6 8 12 18 20 20 26 26 26 26 26 Most Carried 26 | 6 8 12 17 17 20 26 26 26 26 26 Average Carried 22 | 3 7 8 15 17 18 24 25 25 25 24 Final Capacity 26 | 8 8 14 20 20 26 26 26 26 26 26 Final Carried 26 | 4 7 12 17 17 20 25 26 26 26 18 Class Distribution -------------------- 40% | Scavenger-Mutant 19% | Hauler-Mutant 12% | Mutant 8% | Hauler-Tank 7% | Scavenger-Tank 7% | Hauler-Skirmisher Dominant Class ---------------- Mutant | -10/Materials Mutant | -10/Mines Hauler-Mutant | -10/Exiles Hauler-Mutant | -9/Mines Hauler-Skirmisher | -8/Materials Hauler-Mutant | -7/Factory Hauler-Tank | -7/Lower Caves Scavenger-Mutant | -7/Lower Caves Scavenger-Mutant | -7/Zion Hauler-Mutant | -7/Deep Caves Resources | -11 -10 -10 -10 -9 -8 -7 -7 -7 -7 -7 ----------- Run | Scr Mat Min Exi Min Mat Fac Low Low Zio Dee Matter Collected 1977 | 358 118 71 . 84 157 518 381 162 81 47 Remotely . | . . . . . . . . . . . Salvage Created 3488 | 167 146 105 . 252 242 353 640 151 697 735 Parts 174 | 11 20 7 . 14 16 22 25 4 33 22 Haulers Intercepted . | . . . . . . . . . . . Recyclers Shooed 5 | 1 . 1 . . 1 2 . . . . Parts Field Recycled . | . . . . . . . . . . . Retrieved Matter . | . . . . . . . . . . . Parts Self-Destructed 22 | . . . . . . . 16 6 . . Prevented 10 | . . . . . . . 8 2 . . Kills | -11 -10 -10 -10 -9 -8 -7 -7 -7 -7 -7 ------- Run | Scr Mat Min Exi Min Mat Fac Low Low Zio Dee Combat Hostiles Destroyed 70 | . 6 1 . 3 7 4 14 2 8 25 Melee 3 | . . . . . . . . . . 3 Guns 34 | . 6 1 . 3 4 4 11 2 2 1 Cannons 3 | . . . . . . . . . 2 1 AOE 27 | . . . . . 3 . 2 . 2 20 Classes Destroyed 18 | 2 3 1 . . 1 2 1 1 3 4 Worker 6 | . 1 1 . 1 . 3 . . . . Tunneler 7 | 5 . 1 . 1 . . . . . . Recycler 4 | 1 . . . 1 1 1 . . . . Minesweeper 1 | . . . . . . . . 1 . . Watcher 4 | . 2 . . . . 2 . . . . Swarmer 16 | . 6 1 . . 3 . 6 . . . Grunt 13 | . . 1 . 3 3 . 4 2 . . Brawler 1 | . . . . . . . 1 . . . Sentry 3 | . . . . . . 2 1 . . . Hunter 2 | . . . . . 1 1 . . . . Programmer 1 | . . . . . . 1 . . . . Zionite 8 | . . . . . . . . . 8 . Z-Light 5 | . . . . . . . . . . 5 Assembler 1 | . . . . . . . . . . 1 Assembled 18 | . . . . . . . . . . 18 Golem 2 | . . . . . . . . . . 2 Thug 3 | . . . . . . . . . 3 . Savage 3 | . . . . . . . 2 . 1 . Butcher 1 | . . . . . . . . . 1 . Mutant 4 | . . . . . . . . . 4 . Best Kill Streak 19 | 5 8 1 . 3 4 2 6 2 4 19 Combat Bots Only 19 | . 6 1 . 3 4 2 6 2 4 19 Max Kills in Single Turn 4 | 1 1 2 . 1 3 1 2 1 2 4 Gunslinging 1 | . . . . . . . 1 . . . Exploded 4 | . . . . . 3 . 2 . 2 4 Melee 1 | . . . . . . . . . . 1 Uniques/NPCs Destroyed 1 | . . . . . . . . . 1 . Imprinter (-7/Zion) Combat | -11 -10 -10 -10 -9 -8 -7 -7 -7 -7 -7 -------- Run | Scr Mat Min Exi Min Mat Fac Low Low Zio Dee Damage Taken 6231 | . 155 59 . 107 170 558 1447 127 125 3483 Core 807 | . 8 10 . 48 26 51 96 18 33 517 Absorbed by Shields . | . . . . . . . . . . . Core Remaining (%) 89 | 100 . . . 73 95 . . . . . Volleys Fired 243 | 17 18 6 . 9 13 40 48 17 38 37 Largest 3 | 2 2 2 . 2 3 3 3 3 2 3 Hottest 180 | 40 46 46 . 46 91 108 168 108 126 180 Shots Fired 521 | 34 36 12 . 18 27 105 129 37 72 51 Gun 454 | 34 36 12 . 18 22 105 129 37 38 23 Cannon 39 | . . . . . . . . . 34 5 Launcher 28 | . . . . . 5 . . . . 23 Special . | . . . . . . . . . . . Kinetic 241 | 34 36 12 . 18 20 65 45 9 . 2 Thermal 151 | . . . . . 1 40 22 5 72 11 Explosive 15 | . . . . . 5 . . . . 10 Electromagnetic 99 | . . . . . 1 . 62 23 . 13 Phasic 15 | . . . . . . . . . . 15 Robot Hit Streak 23 | 7 4 4 . 6 4 16 23 11 9 7 Robot Miss Streak 7 | 2 4 2 . 1 3 6 7 2 5 4 Penetration Max . | . . . . . . . . . . . Secondary Targets 7 | . 2 . . . 2 . 3 . . . Max Gunslinging Chain 1 | . 1 . . . 1 . 1 . . . Shots Hit Robots 354 | 21 18 6 . 12 19 76 101 24 49 28 Core Hits 244 | 10 9 4 . 6 18 36 46 10 25 80 Critical Hits 3 | . . . . . . . . . . 3 Critical Kills 2 | . . . . . . . . . . 2 Critical Parts Destroyed 1 | . . . . . . . . . . 1 Melee Attacks 24 | . . . . . . 8 . . 11 5 Impact . | . . . . . . . . . . . Slashing 16 | . . . . . . . . . 11 5 Piercing 8 | . . . . . . 8 . . . . Sneak Attacks 6 | . . . . . . 1 . . 5 . Combat Hostiles . | . . . . . . . . . . . Follow-up Attacks . | . . . . . . . . . . . Damage Inflicted 9241 | 217 236 93 . 205 702 1031 1350 367 2208 2832 Guns 4306 | 217 236 93 . 205 172 952 1162 329 480 460 Cannons 567 | . . . . . . . . . 526 41 Explosions 3538 | . . . . . 530 . 188 38 607 2175 Melee 830 | . . . . . . 79 . . 595 156 Ramming . | . . . . . . . . . . . Kinetic 1788 | 217 236 93 . 205 144 394 385 73 . 41 Thermal 2081 | . . . . . 20 558 322 78 1006 97 Explosive 1316 | . . . . . 530 . . . . 786 Electromagnetic 2863 | . . . . . 8 . 643 216 607 1389 Impact . | . . . . . . . . . . . Slashing 751 | . . . . . . . . . 595 156 Piercing 79 | . . . . . . 79 . . . . Phasic 363 | . . . . . . . . . . 363 Highest Corruption 12 | . 2 2 2 2 . 7 12 12 12 10 Average Corruption 7 | . 2 2 2 2 . 6 9 12 12 9 Corruption Purged . | . . . . . . . . . . . Effects 162 | . 2 6 7 1 . 10 74 53 2 7 Message Errors 32 | . 2 1 2 . . 2 10 14 . 1 Matter Fused 33 | . . . . . . 1 18 13 . 1 Heat Flow Errors 19 | . . 2 3 . . 1 4 8 . 1 Energy Discharges 17 | . . . . . . . 13 4 . . Parts Rejected 1 | . . . . . . . . . . 1 Data Loss (minor) 15 | . . 3 2 1 . . 4 4 . 1 Data Loss (major) 3 | . . . . . . 1 2 . . . Misfires 6 | . . . . . . . 1 5 . . Alerts 1 | . . . . . . . 1 . . . Misdirections 11 | . . . . . . . 5 3 2 1 Targeting Errors 22 | . . . . . . 4 15 2 . 1 Weapon Failures 2 | . . . . . . 1 1 . . . Overload Shots . | . . . . . . . . . . . Overflow Damage 302 | . . . . . 19 39 7 13 107 117 Projectiles . | . . . . . . . . . . . Explosions 191 | . . . . . 19 . 7 13 35 117 Melee 111 | . . . . . . 39 . . 72 . Knockbacks . | . . . . . . . . . . . Impact . | . . . . . . . . . . . Kinetic . | . . . . . . . . . . . Secondary . | . . . . . . . . . . . Self-Inflicted Damage 75 | . . . . . . . 56 . . 19 Shots 4 | . . . . . . . 1 . . 3 Rammed . | . . . . . . . . . . . Targets Rammed . | . . . . . . . . . . . Kicked . | . . . . . . . . . . . Crushed . | . . . . . . . . . . . Highest Temperature 413 | . . 198 271 11 12 413 256 293 353 359 Average Temperature 117 | . . 98 128 3 8 143 76 125 132 132 Received Heat Transfer 1004 | . 21 6 . 60 18 66 216 72 . 545 Effects 7 | . . . . . . . . 3 2 2 Shutdowns 1 | . . . . . . . . . . 1 Energy Bleed 1 | . . . . . . . . 1 . . Interference 4 | . . . . . . . . 2 2 . Matter Decay 1 | . . . . . . . . . . 1 Siege Activations . | . . . . . . . . . . . Robots Corrupted 3 | . . . . . . . 1 . 2 . Combat Hostiles 3 | . . . . . . . 1 . 2 . Parts Fried 6 | . . . . . . . 2 . 4 . Impact Corruptions . | . . . . . . . . . . . Robots Melted . | . . . . . . . . . . . Combat Hostiles . | . . . . . . . . . . . Parts Melted 3 | . . . . 1 . . . . 2 . Heat Transferred 3264 | . . . . . 37 848 535 124 1572 148 Parts Sabotaged . | . . . . . . . . . . . Parts Stolen . | . . . . . . . . . . . Parts Stripped . | . . . . . . . . . . . Power Chain Reactions 3 | . . . . . . . 2 1 . . Missiles Intercepted . | . . . . . . . . . . . Alert | -11 -10 -10 -10 -9 -8 -7 -7 -7 -7 -7 ------- Run | Scr Mat Min Exi Min Mat Fac Low Low Zio Dee Peak Influence 278 | 30 191 246 . 89 246 278 . . . . Average Influence 123 | 15 107 121 . 58 202 139 . . . . Maximum Alert Level 1 | . . 1 . . 1 1 . . . . Low Security (%) 80 | 100 100 98 . 100 24 72 . . . . Level 1 19 | . . 1 . . 75 27 . . . . Level 2 . | . . . . . . . . . . . Level 3 . | . . . . . . . . . . . Level 4 . | . . . . . . . . . . . Level 5 . | . . . . . . . . . . . High Security . | . . . . . . . . . . . Max Security . | . . . . . . . . . . . Squads Dispatched 4 | . 1 . . . 1 2 . . . . Investigation 2 | . 1 . . . . 1 . . . . Extermination 1 | . . . . . . 1 . . . . Reinforcement 1 | . . . . . 1 . . . . . Assault . | . . . . . . . . . . . Garrison . | . . . . . . . . . . . Intercept . | . . . . . . . . . . . Construction Impeded . | . . . . . . . . . . . Haulers Reinforced . | . . . . . . . . . . . Stealth | -11 -10 -10 -10 -9 -8 -7 -7 -7 -7 -7 --------- Run | Scr Mat Min Exi Min Mat Fac Low Low Zio Dee Distress Signals 4 | . 1 . . . 1 2 . . . . Communications Jammed . | . . . . . . . . . . . Distress Signals . | . . . . . . . . . . . Times Spotted 165 | . 14 9 . 4 10 13 21 2 26 66 Peak Tracking Total 38 | . 5 3 . 3 4 3 8 2 6 38 Tactical Retreats 13 | . 1 . . . . . 2 . 1 9 Traps | -11 -10 -10 -10 -9 -8 -7 -7 -7 -7 -7 ------- Run | Scr Mat Min Exi Min Mat Fac Low Low Zio Dee Traps Triggered 6 | . 2 . . . . 3 . . 1 . Indirectly 1 | . . . . . . . . . 1 . Trap Hack Attempts . | . . . . . . . . . . . Triggered . | . . . . . . . . . . . Disarmed . | . . . . . . . . . . . Reprogrammed . | . . . . . . . . . . . Reused 1 | . . . . . . . . . 1 . Traps Extracted . | . . . . . . . . . . . Installed 3 | . . . . . . . . . 3 . Triggered . | . . . . . . . . . . . Exploded 1 | . . . . . . . 1 . . . Machines | -11 -10 -10 -10 -9 -8 -7 -7 -7 -7 -7 ---------- Run | Scr Mat Min Exi Min Mat Fac Low Low Zio Dee Machines Disabled 5 | . . . . . . 1 . . 3 1 Max in Single Turn 1 | . . . . . . 1 . . . 1 Garrison Access 1 | . . . . . . 1 . . . . Machines Sabotaged . | . . . . . . . . . . . Garrisons Compromised . | . . . . . . . . . . . Overloaded Fab Kills . | . . . . . . . . . . . Fab Network Shutdowns . | . . . . . . . . . . . Hacking | -11 -10 -10 -10 -9 -8 -7 -7 -7 -7 -7 --------- Run | Scr Mat Min Exi Min Mat Fac Low Low Zio Dee Machines Accessed 18 | . 1 . 2 . 4 7 1 2 1 . Terminals 8 | . 1 . . . 2 5 . . . . Fabricators . | . . . . . . . . . . . Repair Stations 2 | . . . . . 1 1 . . . . Recycling Units . | . . . . . . . . . . . Scanalyzers 1 | . . . . . 1 . . . . . Garrison Access 1 | . . . . . . 1 . . . . Total Hacks 66 | . 3 . 24 . 11 16 1 5 6 . Successful 48 | . 1 . 24 . 4 7 1 5 6 . Failed 18 | . 2 . . . 7 9 . . . . Catastrophic 2 | . . . . . 1 1 . . . . Database Lockouts . | . . . . . . . . . . . Manual 26 | . 3 . 1 . 5 11 . . 6 . Terminals 20 | . 3 . . . 5 12 . . . . Fabricators . | . . . . . . . . . . . Repair Stations 5 | . . . . . 3 2 . . . . Recycling Units . | . . . . . . . . . . . Scanalyzers 3 | . . . . . 3 . . . . . Garrison Access 2 | . . . . . . 2 . . . . Terminal Hacks 38 | . 1 . 24 . . 1 1 5 6 . Record 27 | . . . 23 . . . . 4 . . Part Schematic 6 | . . . . . . . . . 6 . Open Door 2 | . . . . . . . 1 1 . . Branch Access Points 2 | . 1 . . . . 1 . . . . EX-Prototype ID Bank 1 | . . . 1 . . . . . . . Fabricator Hacks . | . . . . . . . . . . . Repair Station Hacks 2 | . . . . . 2 . . . . . Scan Component 1 | . . . . . 1 . . . . . Repair 1 | . . . . . 1 . . . . . Recycling Unit Hacks . | . . . . . . . . . . . Scanalyzer 2 | . . . . . 2 . . . . . Insert Component 1 | . . . . . 1 . . . . . Analyze 1 | . . . . . 1 . . . . . Garrison Access Hacks 1 | . . . . . . 1 . . . . Seal Access 1 | . . . . . . 1 . . . . Unauthorized Hacks 16 | . . . . . 2 14 . . . . Terminals 5 | . . . . . . 5 . . . . Botnet 5 | . . . . . . 5 . . . . Fabricators . | . . . . . . . . . . . Repair Stations . | . . . . . . . . . . . Recycling Units . | . . . . . . . . . . . Scanalyzers . | . . . . . . . . . . . Garrison Access . | . . . . . . . . . . . Data Cores Recovered . | . . . . . . . . . . . Used . | . . . . . . . . . . . Hacking Detections 12 | . 1 . . . 4 7 . . . . Full Trace Events . | . . . . . . . . . . . Feedback Events . | . . . . . . . . . . . Feedback Blocked . | . . . . . . . . . . . Robot Schematics Acquired . | . . . . . . . . . . . Robots Built . | . . . . . . . . . . . Matter . | . . . . . . . . . . . Time . | . . . . . . . . . . . Total Robot Build Rating . | . . . . . . . . . . . Part Schematics Acquired 7 | . . . . . 1 . . . 6 . Parts Built . | . . . . . . . . . . . Matter . | . . . . . . . . . . . Time . | . . . . . . . . . . . Total Part Build Rating . | . . . . . . . . . . . Parts Repaired 1 | . . . . . 1 . . . . . Time 26 | . . . . . 26 . . . . . Parts Recycled . | . . . . . . . . . . . Recycled Matter . | . . . . . . . . . . . Retrieved Matter . | . . . . . . . . . . . Retrieved Components . | . . . . . . . . . . . Parts Scanalyzed 1 | . . . . . 1 . . . . . Part Schematics Acquired 1 | . . . . . 1 . . . . . Parts Damaged . | . . . . . . . . . . . Bothacking | -11 -10 -10 -10 -9 -8 -7 -7 -7 -7 -7 ------------ Run | Scr Mat Min Exi Min Mat Fac Low Low Zio Dee Used RIF Installer . | . . . . . . . . . . . Robots Hacked . | . . . . . . . . . . . Non-combat . | . . . . . . . . . . . Combat . | . . . . . . . . . . . Robot Hacks Applied . | . . . . . . . . . . . Relay Couplers Released . | . . . . . . . . . . . Robots Rewired 2 | . . . . . . . 2 . . . Allies Hacked . | . . . . . . . . . . . Hacks Repelled . | . . . . . . . . . . . Allies | -11 -10 -10 -10 -9 -8 -7 -7 -7 -7 -7 -------- Run | Scr Mat Min Exi Min Mat Fac Low Low Zio Dee Total Allies 10 | . . 3 . . . . 2 . 5 . Largest Group 3 | . . 3 1 1 1 . 2 . 3 . Highest-Rated Group 211 | . . 40 16 16 16 . 45 . 211 . Highest-Rated Ally 94 | . . 16 16 16 16 . 25 . 94 . Total Orders . | . . . . . . . . . . . Ally Attacks 264 | . . 20 . 10 8 . 5 . 111 110 Total Damage 9310 | . . 244 . 126 45 . 197 . 3085 5613 Kills 60 | . . 10 . 1 1 . 1 . 21 26 Allies Corrupted . | . . . . . . . . . . . Allies Melted . | . . . . . . . . . . . Turrets Deployed 3 | . . . . . . . . . . 3 Intel | -11 -10 -10 -10 -9 -8 -7 -7 -7 -7 -7 ------- Run | Scr Mat Min Exi Min Mat Fac Low Low Zio Dee Robot Analysis Total . | . . . . . . . . . . . Derelict Logs Recovered 8 | . . 2 . 1 . . 3 1 1 . Drone Launches . | . . . . . . . . . . . Drone Recoveries . | . . . . . . . . . . . Exploration | -11 -10 -10 -10 -9 -8 -7 -7 -7 -7 -7 ------------- Run | Scr Mat Min Exi Min Mat Fac Low Low Zio Dee Turns Passed 9046 | 145 206 715 338 304 334 874 1496 1162 2531 941 Spaces Moved 5368 | 86 170 597 291 190 246 573 883 600 1309 423 Core 22 | 22 . . . . . . . . . . Treads 2654 | . . . . . . . 322 600 1309 423 Legs . | . . . . . . . . . . . Wheels 2692 | 64 170 597 291 190 246 573 561 . . . Hover . | . . . . . . . . . . . Flight . | . . . . . . . . . . . Fastest Speed 50 | 50 80 80 100 110 100 105 105 180 180 182 Average Speed 144 | 86 83 107 108 110 106 107 141 180 180 188 Slowest Speed 250 | 150 90 120 120 110 110 120 200 180 183 250 Overloaded Moves . | . . . . . . . . . . . Propulsion Burnouts . | . . . . . . . . . . . Robots Hopped . | . . . . . . . . . . . Cave-ins Triggered . | . . . . . . . . . . . Exploration Rate (%) 54 | 4 39 94 66 49 29 16 80 65 89 69 Regions Visited 10 Branch Regions 7 Pre-discovered Areas 2 | . . . 1 . . . . . 1 . Known Exits Taken 2 | . 1 . . . . 1 . . . . Unknown Exits Taken 8 | 1 . 1 1 1 1 . 1 1 1 . Scrap Searched 12 | . . 2 . . . . 2 4 4 . Spaces Dug 4 | . . . . . . 4 . . . . Terrain Destroyed 72 | . . . . . 31 4 9 4 . 24 Melee 4 | . . . . . . 4 . . . . Projectile . | . . . . . . . . . . . AOE 68 | . . . . . 31 . 9 4 . 24 Actions | -11 -10 -10 -10 -9 -8 -7 -7 -7 -7 -7 --------- Run | Scr Mat Min Exi Min Mat Fac Low Low Zio Dee Total 6196 | 126 198 661 314 267 296 740 1023 655 1398 518 Wait 253 | . . 48 4 69 11 82 17 18 4 . Move 5358 | 85 169 596 290 189 245 572 882 599 1308 423 Hop . | . . . . . . . . . . . Pick Up 123 | 13 6 7 11 . 13 17 18 8 14 16 Fast Attach . | . . . . . . . . . . . Attach 52 | 7 1 . . . 7 6 11 1 . 19 Detach 3 | . . . . . . . . . . 3 Swap 40 | 2 2 2 3 . 3 7 5 5 6 5 Drop 62 | 2 2 2 6 . 4 8 7 7 14 10 Fire 243 | 17 18 6 . 9 13 40 48 17 38 37 Melee 24 | . . . . . . 8 . . 11 5 Ram . | . . . . . . . . . . . Kick . | . . . . . . . . . . . Crush . | . . . . . . . . . . . Escape Stasis . | . . . . . . . . . . . Rewire 35 | . . . . . . . 35 . . . Trap 3 | . . . . . . . . . 3 . Miscellaneous . | . . . . . . . . . . . Route ------- -11/Scrapyard -10/Materials (discovered 3 exits: [*Mat] / *Min x2) -10/Mines (discovered 3 exits: [*Mat x2] / *Exi) -10/Exiles -9/Mines -8/Materials -7/Factory (discovered 2 exits: *Low x2) -7/Lower Caves -7/Lower Caves -7/Zion (discovered 2 exits: [*Dee] / [*Pro]) -7/Deep Caves (discovered 1 exit: [*Pro]) History --------- Turn | Location | Event 11 | -11/Scrapyard | Discovered new exit (range 15) 146 | -11/Scrapyard | Entered Materials 153 | -10/Materials | Identified exit to Mines 312 | -10/Materials | Build established: Mutant 330 | -10/Materials | Discovered new exit (range 15) 352 | -10/Materials | Entered Mines 352 | -10/Mines | Assisted by bots powering up and referring to "LRC-V3" 483 | -10/Mines | Discovered new exit (range 8) 492 | -10/Mines | Learned Materials stockpile data 557 | -10/Mines | Discovered new exit (range 7) 607 | -10/Mines | Deemed a non-threat by the Exiles lab entrance 607 | -10/Mines | Discovered new exit (range 5) 836 | -10/Mines | Received a Rocket Launcher from a helpful Derelict 1067 | -10/Mines | Entered Exiles 1067 | -10/Exiles | Accompanied by 1 ally 1105 | -10/Exiles | Met 8R-AWN 1121 | -10/Exiles | Met EX-HEX 1214 | -10/Exiles | Met EX-BIN 1227 | -10/Exiles | Aligned with FarCom system 1228 | -10/Exiles | Given EX-Vault access code 1256 | -10/Exiles | Opened EX-Vault 1265 | -10/Exiles | Found AWS/Gauss 1267 | -10/Exiles | Found Deploy-a-Sentry 1269 | -10/Exiles | Found Deploy-a-Sentry 1271 | -10/Exiles | Found Deploy-a-Sentry 1293 | -10/Exiles | Warned to stay clear of 0b10 Research branches 1305 | -10/Exiles | Exiles lab attacked by MAIN.C 1332 | -10/Exiles | Learned location of Zion (-7) 1388 | -10/Exiles | Discovered new exit (range 14) 1405 | -10/Exiles | Left Exiles lab with Deploy-a-Sentry 1405 | -10/Exiles | Entered Mines 1405 | -9/Mines | Accompanied by 1 ally 1467 | -9/Mines | Build established: Hauler-Mutant 1553 | -9/Mines | Assembled infested the area 1558 | -9/Mines | Assisted by a Guerilla fighting off Assembled 1610 | -9/Mines | Learned Materials machine intel 1617 | -9/Mines | Discovered new exit (range 16) 1709 | -9/Mines | Entered Materials 1709 | -8/Materials | Accompanied by 1 ally 1709 | -8/Materials | Evolved 4 slots: Propulsion x1, Utility x2, Weapon x1 1711 | -8/Materials | Loaded intel: 42 machine locations 1882 | -8/Materials | Discovered new exit (range 13) 1935 | -8/Materials | Repaired Wheel 2013 | -8/Materials | Build established: Hauler-Skirmisher 2043 | -8/Materials | Entered Factory 2043 | -7/Factory | Evolved 2 slots: Propulsion x1, Utility x1 2712 | -7/Factory | Identified exit to Lower Caves 2917 | -7/Factory | Entered Lower Caves 3451 | -7/Lower Caves | Lost 5 parts (1n1u3w) 3497 | -7/Lower Caves | Learned location of 1 exit from Factory 3632 | -7/Lower Caves | Attracted the attention of an 0b10 checkpoint 3651 | -7/Lower Caves | Attacked by a faux Warlord 3660 | -7/Lower Caves | System corruption reached 10% 3906 | -7/Lower Caves | Build established: Hauler-Tank 4297 | -7/Lower Caves | Learned Factory stockpile data 4388 | -7/Lower Caves | Discovered new exit (range 7) 4413 | -7/Lower Caves | Entered another Lower Caves area 4560 | -7/Lower Caves | Learned location of 2 exits from Factory 4596 | -7/Lower Caves | Learned Armory security intel 4654 | -7/Lower Caves | Build established: Scavenger-Tank 5059 | -7/Lower Caves | Build established: Scavenger-Mutant 5492 | -7/Lower Caves | Discovered new exit (range 5) 5575 | -7/Lower Caves | Entered Zion 5633 | -7/Zion | System corruption cleaned by Quarantine Array 5692 | -7/Zion | Discovered new exit (range 11) 5896 | -7/Zion | Learned 12 Factory zone layouts 6000 | -7/Zion | Gained Derelict followers 6390 | -7/Zion | Learned location of Warlord (-5) 6471 | -7/Zion | Given A8's code to call for help 7389 | -7/Zion | Enhanced Grunt warped into view, answering call for help 7390 | -7/Zion | Enhanced Grunt warped into view, answering call for help 7563 | -7/Zion | Rebuked by Imprinter 7624 | -7/Zion | Attacked by Zionites 7809 | -7/Zion | Destroyed Imprinter 7826 | -7/Zion | Extracted access codes from Imprinter's data core 8068 | -7/Zion | Opened final containment barrier to the Deep Caves 8097 | -7/Zion | Discovered new exit (range 3) 8097 | -7/Zion | Saw the warning signs outside the Deep Caves entrance 8106 | -7/Zion | Entered Deep Caves 8283 | -7/Deep Caves | Z-Facility disabled 8338 | -7/Deep Caves | Lost 5 parts (2n2u1w) 8400 | -7/Deep Caves | Found Prototype Protection 8401 | -7/Deep Caves | Identified Zio. Heavy Carapace 8559 | -7/Deep Caves | Found Surveybot 24 Scanner 8562 | -7/Deep Caves | Found Surveybot 24 Chip 8597 | -7/Deep Caves | Build established: Hauler-Mutant 8652 | -7/Deep Caves | Discovered new exit (range 6) 8804 | -7/Deep Caves | Spotted as-73179 8807 | -7/Deep Caves | DAS Turret deployed 8809 | -7/Deep Caves | DAS Turret deployed 8813 | -7/Deep Caves | DAS Turret deployed 8826 | -7/Deep Caves | Exposed GOLEM chamber 8828 | -7/Deep Caves | Allies destroyed as-73179 8853 | -7/Deep Caves | Triggered Deep Caves wall 8878 | -7/Deep Caves | Spotted AS-47766 8881 | -7/Deep Caves | Core integrity fell below 50% 8901 | -7/Deep Caves | Allies destroyed AS-47766 8916 | -7/Deep Caves | Spotted AS-37430 8934 | -7/Deep Caves | Lost 7 parts (1p3n1u2w) 8941 | -7/Deep Caves | Found GOLEM Unit 8957 | -7/Deep Caves | Destroyed 19 combat bots 8984 | -7/Deep Caves | Destroyed AS-37430 9008 | -7/Deep Caves | Triggered Deep Caves wall 9016 | -7/Deep Caves | Spotted as-90495 9032 | -7/Deep Caves | Core integrity fell below 20% 9047 | -7/Deep Caves | Destroyed by as-90495 with Assembled Focal Cannon Last Messages --------------- 08997_ Acquired Lgt. Treads. 08998_ as-91515 GOLEM Unit beginning Prototype Reactor integration. 08998_ as-80287 GOLEM Unit beginning Prototype Reactor integration. 08998_ as-90788 GOLEM Unit beginning Prototype Reactor integration. 09005_ L 4|NG9MJQ=<4RVXMALUM6=FRJ798S5OG8B1 09015_ as-03457 destroyed. 09018_ as-90495: "DSI9AT1D G8OHIBQ29FWG 26R186 QD12WHW8W33 TDK1 81FTS" 09020_ Zio. Phaser-S destroyed. 09020_ Proton Missile Launcher destroyed. 09020_ Arm. Treads destroyed. 09020_ Lgt. Treads destroyed. 09020_ as-70521 destroyed. 09031_ Lgt. Treads destroyed. 09031_ as-80287 knocked back. 09035_ System corrupted: Heat flow error (+217). 09035_ as-80287 knocked back. 09038_ Lgt. Treads destroyed. 09038_ as-59723 suffers critical hit. 09038_ as-59723 destroyed. 09041_ as-80287 knocked back. Map ----- +----------------------------------------------------+ | ????????" ????????# ##? | | ????????? ????????## #?? | | ?????????" ??????#### ##? | | ?????????" ##?????# #? | | ?????????" ?????# ## | | ?????????" #?###??# ## ## | | ????????"" #?# #??## #?#### ### | | ??????### ### ######## ##### ## | | ??""""" # ????###?# # | | ??" / [ ##?????????#< # ### | | ??" / G ###???????########?## | | ??" #?????????????????## | | ??" !*! #???????????????????## | | ??" !!%!! ##?# ??????????????# | | ??" !!! M % #? #?????????????# | | ??" [ * ## #????????????## | | ??""""" % ! = / * G ## #????????????# | | ??????### ! G #? #????????????#### | | ??????#"% ** #?# #???????????????? | | ??????# g #?# ##??????????????? | | ??????# #?# ####???????????? | | ??????# = b %### ###??######?# | | ??????#" = * ## ???? ### | | ???????## = * G ## #??????# ## | | ????????" ## #????#### # | | ????????" = @ ## ##??## | | ????????" == l % #### | | ????????""" = | | ????????" h | | ????????"" = ## #### | | ????????" % ### #??## | | ????????"" t t ##?# #??### | | ????????" = ; # ;#?# #????## | | ????????" #### ## ## ###?## ##?????#### | | ????????""" ###??# ## ####????#### ##?????????? | | ?????????" ????#### #??????????####??????????? | | ?????????#######???????#?????????????????????????? | | | | | | | | | | | | | | | | | | | | | | | | | | | +----------------------------------------------------+ Best States ------------- Heat Dissipation 48 Energy Generation 27 Energy Capacity 290 Matter Stores 300 Matter Capacity 300 Sight Range 16 Terrain Scan Density 10 Armor Coverage 1200 Evasion (%) 50 Recoil Reduction 4 Item Schematics ----------------- Rnf. Deuterium Engine | -8/Materials | Scanalyzed Beamcaster | -7/Zion | Free Riot Gun | -7/Zion | Free Battle Cannon | -7/Zion | Free Slug Cannon | -7/Zion | Free Flamer | -7/Zion | Free Ripper | -7/Zion | Free Robot Schematics ------------------ None Fabricated ------------ Nothing Alien Tech Used ----------------- None Achievements -------------- None Challenges ------------ None Game ------ Seed BackupWeldingChronowheel Manual? 0 Play Time 00:57:11 Cumulative 248.9 hours Start 2019.12.15 @ 15:08:49 End 2019.12.15 @ 19:50:51 Sessions 5 Manual Loads 0 Difficulty Rogue Special Mode None Game No. 314 Rogue 314 Adventurer 0 Explorer 0 Win Type - Total 2 Types 1/0/0/1/0/0/0 Lore% 60 Gallery% 81 Achievement% 57 Wizard Run 0 Options --------- ASCII 0 Keyboard 0 Movement Numpad Keybinds 0 Fullscreen 1 Font 16/Terminus Map View 75x55 Tactical HUD 1 Map Filters NONE Filters NONE Steam 1 RUN: a6e32c67-4471-4b53-b7ef-c1b034896e70